lending/lending_fUSD_20250122
["ID","MTS","AMOUNT","RATE_DAILY","PERIOD"]
[350011947,1737564672981,-500.0,0.00021643,2]
[350011948,1737564672991,-500.0,0.00021643,2]
[350011949,1737564673000,-463.46660821,0.00021643,2]
[350011950,1737564673011,-490.61603973,0.00021643,2]
[350011951,1737564673021,-500.0,0.00021643,2]
[350011952,1737564673030,-597.93,0.00021643,2]
[350011953,1737564673040,-568.16,0.00021643,2]
[350011954,1737564673050,-500.0,0.00021643,2]
[350011955,1737564673060,-693.59,0.00021643,2]
[350011956,1737564673070,-774.01,0.00021643,2]
[350011957,1737564673079,-500.0,0.00021643,2]
[350011958,1737564673097,-678.729105,0.00021643,2]
[350011959,1737564673106,-643.99,0.00021643,2]
[350011960,1737564673116,-287.12,0.00021643,2]
[350011961,1737564673125,-500.0,0.00021643,2]
[350011962,1737564673135,-500.0,0.00021643,2]
[350011963,1737564673144,-921.053606,0.00021643,2]
[350011964,1737564673153,-500.0,0.00021643,2]
[350011965,1737564673163,-530.18,0.00021643,2]
[350011966,1737564673172,-500.0,0.00021643,2]
[350011967,1737564673181,-500.0,0.00021643,2]
[350011968,1737564673191,-500.0,0.00021643,2]
[350011969,1737564673200,-500.0,0.00021643,2]
[350011970,1737564673209,-500.0,0.00021643,2]
[350011971,1737564673219,-500.0,0.00021643,2]
[350011972,1737564673228,-500.0,0.00021643,2]
[350011973,1737564673238,-564.87,0.00021643,2]
[350011974,1737564673247,-855.78,0.00021643,2]
[350011975,1737564673256,-500.0,0.00021643,2]
[350011976,1737564673265,-709.74,0.00021643,2]
[350011977,1737564673275,-826.55,0.00021643,2]
[350011978,1737564673284,-188.38646,0.00021643,2]
[350011979,1737564673294,-500.0,0.00021643,2]
[350011980,1737564673303,-500.0,0.00021643,2]
[350011981,1737564673312,-662.96,0.00021643,2]
[350011982,1737564673322,-679.12,0.00021643,2]
[350011983,1737564673331,-500.0,0.00021643,2]
[350011984,1737564673342,-512.16,0.00021643,2]
[350011985,1737564673351,-500.0,0.00021643,2]
[350011986,1737564673361,-1005.12,0.00021643,2]
[350011987,1737564673371,-529.67936903,0.00021643,2]
[350011988,1737564673380,-500.0,0.00021643,2]
[350011989,1737564673389,-698.09,0.00021643,2]
[350011990,1737564673400,-628.59,0.00021643,2]
[350011991,1737564673410,-539.62,0.00021643,2]
[350011992,1737564673419,-417.61590834,0.00021643,2]
[350011993,1737564673429,-740.64,0.00021643,2]
[350011994,1737564673438,-960.26,0.00021643,2]
[350011995,1737564673447,-932.4,0.00021643,2]
[350011996,1737564673456,-776.07,0.00021643,2]
[350011997,1737564673466,-500.0,0.00021643,2]
[350011998,1737564673475,-500.0,0.00021643,2]
[350011999,1737564673485,-500.0,0.00021643,2]
[350012000,1737564673494,-880.8,0.00021643,2]
[350012001,1737564673504,-586.08577762,0.00021643,2]
[350012002,1737564673513,-827.35,0.00021643,2]
[350012003,1737564673523,-984.49,0.00021643,2]
[350012004,1737564673532,-675.84,0.00021643,2]
[350012005,1737564673542,-624.4,0.00021643,2]
[350012006,1737564673551,-533.95,0.00021643,2]
[350012007,1737564673562,-798.72,0.00021643,2]
[350012008,1737564673571,-851.17,0.00021643,2]
[350012009,1737564673581,-754.56,0.00021643,2]
[350012010,1737564673592,-500.0,0.00021643,2]
[350012011,1737564673602,-500.0,0.00021643,2]
[350012012,1737564673612,-940.6,0.00021643,2]
[350012013,1737564673621,-500.0,0.00021643,2]
[350012014,1737564673631,-937.01,0.00021643,2]
[350012015,1737564673640,-1249.64,0.00021643,2]
[350012016,1737564673650,-500.0,0.00021643,2]
[350012017,1737564673660,-500.0,0.00021643,2]
[350012018,1737564673670,-644.89437745,0.00021643,2]
[350012019,1737564673684,-1017.47562255,0.00021643,2]
[350012020,1737564673693,-557.94,0.00021643,2]
[350012021,1737564673703,-799.87,0.00021643,2]
[350012022,1737564673712,-659.97,0.00021643,2]
[350012023,1737564673722,-1189.42,0.00021643,2]
[350012024,1737564673731,-1115.66,0.00021643,2]
[350012025,1737564673740,-758.88,0.00021643,2]
[350012026,1737564673749,-500.0,0.00021643,2]
[350012027,1737564673759,-897.56,0.00021643,2]
[350012028,1737564673770,-600.73,0.00021643,2]
[350012029,1737564673779,-500.0,0.00021643,2]
[350012030,1737564673788,-1689.73,0.00021643,2]
[350012031,1737564673797,-500.0,0.00021643,2]
[350012032,1737564673807,-1289.84,0.00021643,2]
[350012033,1737564673816,-597.44150545,0.00021643,2]
[350012034,1737564673829,-350.62849455,0.00021643,2]
[350012035,1737564673839,-445.862043,0.00021643,2]
[350012036,1737564673848,-246.59146245,0.00021643,2]
[350012037,1737564673859,-1046.39853755,0.00021643,2]
[350012038,1737564673868,-987.12,0.00021643,2]
[350012039,1737564673878,-1179.31,0.00021643,2]
[350012040,1737564673887,-500.0,0.00021643,2]
[350012041,1737564673901,-1540.0,0.00021643,2]
[350012042,1737564673911,-500.0,0.00021643,2]
[350012043,1737564673920,-576.36,0.00021643,2]
[350012044,1737564673929,-1949.27,0.00021643,2]
[350012045,1737564673940,-1084.18,0.00021643,2]
[350012046,1737564673949,-49.91846298,0.00021643,2]
[350012047,1737564673960,-2470.46153702,0.00021643,2]
[350012048,1737564673970,-154.57516298,0.00021643,2]
[350012049,1737564673982,-398.94483702,0.00021643,2]
[350012050,1737564673991,-5054.1,0.00021643,2]
[350012051,1737564674001,-668.03,0.00021643,2]
[350012052,1737564674010,-206.07380133,0.00021643,2]
[350012053,1737564674026,-727.89619867,0.00021643,2]
[350012054,1737564674035,-1396.54,0.00021643,2]
[350012055,1737564674044,-2807.04,0.00021643,2]
[350012056,1737564674054,-640.64,0.00021643,2]
[350012057,1737564674063,-861.9,0.00021643,2]
[350012058,1737564674073,-742.82,0.00021643,2]
[350012059,1737564674082,-2622.27,0.00021643,2]
[350012060,1737564674093,-1147.71,0.00021643,2]
[350012061,1737564674102,-1397.58,0.00021643,2]
[350012062,1737564674112,-644.84,0.00021643,2]
[350012063,1737564674122,-500.0,0.00021643,2]
[350012064,1737564674131,-876.86,0.00021643,2]
[350012065,1737564674141,-1969.95,0.00021643,2]
[350012066,1737564674151,-1623.55,0.00021643,2]
[350012067,1737564674161,-1125.49,0.00021643,2]
[350012068,1737564674170,-988.97,0.00021643,2]
[350012069,1737564674179,-324.39141777,0.00021643,2]
[350012070,1737564674189,-1383.41,0.00021643,2]
[350012071,1737564674198,-3375.42,0.00021643,2]
[350012072,1737564674207,-933.59,0.00021643,2]
[350012073,1737564674217,-212.8688145,0.00021643,2]
[350012074,1737564674226,-877.46,0.00021643,2]
[350012075,1737564674236,-674.84,0.00021643,2]
[350012076,1737564674246,-788.35,0.00021643,2]
[350012077,1737564674255,-2196.11,0.00021643,2]
[350012078,1737564674264,-1102.3,0.00021643,2]
[350012079,1737564674274,-802.14,0.00021643,2]
[350012080,1737564674283,-1948.77,0.00021643,2]
[350012081,1737564674293,-1505.78,0.00021643,2]
[350012082,1737564674302,-2637.93,0.00021643,2]
[350012083,1737564674311,-500.0,0.00021643,2]
[350012084,1737564674321,-994.03,0.00021643,2]
[350012085,1737564674331,-637.51,0.00021643,2]
[350012086,1737564674342,-866.11,0.00021643,2]
[350012087,1737564674352,-524.7,0.00021643,2]
[350012088,1737564674362,-500.0,0.00021643,2]
[350012089,1737564674371,-895.62,0.00021643,2]
[350012090,1737564674380,-709.66,0.00021643,2]
[350012091,1737564674390,-500.0,0.00021643,2]
[350012092,1737564674399,-1296.18,0.00021643,2]
[350012093,1737564674410,-1221.77,0.00021643,2]
[350012094,1737564674421,-500.0,0.00021643,2]
[350012095,1737564674430,-1308.26,0.00021643,2]
[350012096,1737564674439,-1266.64,0.00021643,2]
[350012097,1737564674451,-1024.02,0.00021643,2]
[350012098,1737564674461,-933.28,0.00021643,2]
[350012099,1737564674471,-929.73,0.00021643,2]
[350012100,1737564674481,-2952.64,0.00021643,2]
[350012101,1737564674491,-1159.37,0.00021643,2]
[350012102,1737564674500,-817.08,0.00021643,2]
[350012103,1737564674510,-522.56,0.00021643,2]
[350012104,1737564674519,-1594.75,0.00021643,2]
[350012105,1737564674529,-500.0,0.00021643,2]
[350012106,1737564674539,-500.0,0.00021643,2]
[350012107,1737564674549,-1319.68,0.00021643,2]
[350012108,1737564674559,-500.0,0.00021643,2]
[350012109,1737564674568,-943.47,0.00021643,2]
[350012110,1737564674578,-556.38,0.00021643,2]
[350012111,1737564674589,-979.95,0.00021643,2]
[350012112,1737564674598,-2180.0,0.00021643,2]
[350012113,1737564674607,-500.0,0.00021643,2]
[350012114,1737564674617,-1000.0,0.00021643,2]
[350012115,1737564674626,-1054.44,0.00021643,2]
[350012116,1737564674635,-500.0,0.00021643,2]
[350012117,1737564674645,-599.54,0.00021643,2]
[350012118,1737564674654,-506.05,0.00021643,2]
[350012119,1737564674663,-500.0,0.00021643,2]
[350012120,1737564674672,-703.23,0.00021643,2]
[350012121,1737564674681,-616.56,0.00021643,2]
[350012122,1737564674691,-1469.11,0.00021643,2]
[350012123,1737564674700,-500.0,0.00021643,2]
[350012124,1737564674710,-500.0,0.00021643,2]
[350012125,1737564674719,-500.0,0.00021643,2]
[350012126,1737564674728,-152.92093166,0.00021643,2]
[350012127,1737564674738,-500.0,0.00021643,2]
[350012128,1737564674747,-1729.24,0.00021643,2]
[350012129,1737564674757,-1622.79,0.00021643,2]
[350012130,1737564674767,-500.0,0.00021643,2]
[350012131,1737564674776,-563.14,0.00021643,2]
[350012132,1737564674786,-500.0,0.00021643,2]
[350012133,1737564674795,-2613.81,0.00021643,2]
[350012134,1737564674804,-904.26,0.00021643,2]
[350012135,1737564674813,-548.46,0.00021643,2]
[350012136,1737564674823,-931.41,0.00021643,2]
[350012137,1737564674833,-1623.01857873,0.00021643,2]
[350012138,1737564675135,-595.58142127,0.00021643,2]
[350012139,1737564675144,-500.0,0.00021643,2]
[350012140,1737564675154,-165.49128811,0.00021646,4]
[350012141,1737564675163,-150.0,0.00021646,4]
[350012142,1737564675173,-150.0,0.00021646,4]
[350012143,1737564675182,-150.0,0.0002165,4]
[350012144,1737564675191,-150.0,0.00021651,2]
[350012145,1737564675200,-516.45,0.00021653,2]
[350012146,1737564675210,-165.49128811,0.00021657,4]
[350012147,1737564675220,-150.0,0.00021665,4]
[350012148,1737564675230,-165.49128811,0.00021667,4]
[350012149,1737564675241,-150.0,0.00021669,2]
[350012150,1737564675251,-165.49128811,0.00021677,4]
[350012151,1737564675261,-150.0,0.00021683,4]
[350012152,1737564675271,-150.0,0.00021685,4]
[350012153,1737564675281,-165.49128811,0.00021687,4]
[350012154,1737564675290,-582.87467083,0.00021693,3]
[350012155,1737564675300,-165.49128811,0.00021698,4]
[350012156,1737564675310,-286.10299043,0.000217,2]
[350012157,1737564675322,-310.5,0.000217,2]
[350012158,1737564675335,-777.38588831,0.000217,2]
[350012159,1737564675347,-820.07495876,0.000217,2]
[350012160,1737564675359,-66946.45208326,0.000217,2]
[350012161,1737564675372,-150.0,0.00021702,4]
[350012162,1737564675391,-165.49128811,0.00021708,4]
[350012163,1737564675407,-165.49128811,0.00021718,4]
[350012164,1737564675416,-150.0,0.0002172,4]
[350012165,1737564675426,-150.0,0.0002172,4]
[350012166,1737564675436,-1265.9726443,0.00021722,2]
[350012167,1737564675446,-372.18392685,0.00021722,2]
[350012168,1737564675458,-239.41580932,0.00021722,2]
[350012169,1737564675467,-1180.31366162,0.00021722,2]
[350012170,1737564675477,-169.71,0.00021725,2]
[350012171,1737564675486,-165.49128811,0.00021728,4]
[350012172,1737564675496,-165.49128811,0.00021739,4]
[350012173,1737564675505,-150.0,0.00021739,4]
[350012174,1737564675515,-150.0,0.00021739,4]
[350012175,1737564675526,-165.49128811,0.00021749,4]
[350012176,1737564675535,-2789.08666473,0.0002175,7]
[350012177,1737564675548,-10074.10133889,0.0002175,7]
[350012178,1737564811728,15000.0,0.00024,120]
[350012180,1737565184591,153.18,0.00012501,2]
[350012181,1737565324662,160.38,0.00010137,2]
[350012183,1737565594912,844383.33059918,0.00024,120]
[350012198,1737565831639,-532.06294911,0.00015,2]
[350012199,1737565831746,-17.93705089,0.00015,2]
[350012200,1737565831756,-821.53294661,0.00016,2]
[350012201,1737565831768,-779.58705339,0.00016,2]
[350012202,1737565831777,-7839.34590473,0.00016805,2]
[350012203,1737565831787,-828.29,0.00016906,2]
[350012204,1737565831797,-600.0,0.00017,2]
[350012205,1737565831806,-191.24456173,0.00017899,2]
[350012206,1737565831818,-108.75543827,0.00017899,2]
[350012207,1737565831827,-250.0,0.00017998,2]
[350012208,1737565831836,-838.82032032,0.00018,2]
[350012209,1737565831845,-2547.75,0.00018011,2]
[350012210,1737565831854,-254.09,0.00018217,2]
[350012211,1737565831864,-250.0,0.0001826,2]
[350012212,1737565831873,-174.95,0.0001826,2]
[350012213,1737565831882,-503.48,0.00018298,2]
[350012214,1737565831891,-1703.99,0.00018307,2]
[350012215,1737565831900,-590.33,0.00018376,2]
[350012216,1737565831909,-203.77,0.00018376,2]
[350012217,1737565831919,-179.76,0.00018376,2]
[350012218,1737565831928,-1807.81,0.00018504,2]
[350012219,1737565831937,-500.0,0.00018548,2]
[350012220,1737565831946,-500.0,0.00018548,2]
[350012221,1737565831955,-464.1,0.00018567,2]
[350012222,1737565831964,-250.0,0.00018862,2]
[350012223,1737565831973,-1293.25,0.00018936,2]
[350012224,1737565831982,-2600.0,0.00018948,2]
[350012225,1737565831992,-5632.54,0.00018979,2]
[350012226,1737565832000,-284.74,0.00018979,2]
[350012227,1737565832010,-650.0,0.00019,2]
[350012228,1737565832019,-512.49654467,0.00019078,2]
[350012229,1737565832027,-1000.0,0.00019096,2]
[350012230,1737565832037,-196.564,0.00019096,2]
[350012231,1737565832048,-1080.867,0.00019096,2]
[350012232,1737565832057,-828.29,0.00019169,2]
[350012233,1737565832066,-500.0,0.00019178,2]
[350012234,1737565832075,-500.0,0.00019178,2]
[350012235,1737565832084,-500.0,0.00019178,2]
[350012236,1737565832093,-500.0,0.00019178,2]
[350012237,1737565832102,-500.0,0.00019178,2]
[350012238,1737565832111,-500.0,0.00019178,2]
[350012240,1737565832121,-500.0,0.00019178,2]
[350012242,1737565832130,-500.0,0.00019178,2]
[350012243,1737565832139,-500.0,0.00019178,2]
[350012245,1737565832149,-339.92351284,0.00019178,2]
[350012247,1737565832169,-3.38910078,0.00019178,2]
[350012248,1737565832178,-500.0,0.00019178,2]
[350012249,1737565832187,-500.0,0.00019178,2]
[350012250,1737565832196,-500.0,0.00019178,2]
[350012251,1737565832205,-538.438234,0.00019178,2]
[350012252,1737565832214,-500.0,0.00019178,2]
[350012253,1737565832223,-500.0,0.00019178,2]
[350012255,1737565832232,-500.0,0.00019178,2]
[350012256,1737565832243,-500.0,0.00019178,2]
[350012257,1737565832253,-500.0,0.00019178,2]
[350012258,1737565832263,-500.0,0.00019178,2]
[350012259,1737565832271,-500.0,0.00019178,2]
[350012261,1737565832281,-500.0,0.00019178,2]
[350012263,1737565832290,-500.0,0.00019178,2]
[350012265,1737565832299,-500.0,0.00019178,2]
[350012267,1737565832309,-500.0,0.00019178,2]
[350012269,1737565832318,-500.0,0.00019178,2]
[350012271,1737565832329,-500.0,0.00019178,2]
[350012273,1737565832338,-500.0,0.00019178,2]
[350012275,1737565832346,-500.0,0.00019178,2]
[350012277,1737565832355,-564.87,0.00019178,2]
[350012279,1737565832365,-500.0,0.00019178,2]
[350012281,1737565832374,-500.0,0.00019178,2]
[350012283,1737565832383,-500.0,0.00019178,2]
[350012285,1737565832392,-500.0,0.00019178,2]
[350012287,1737565832401,-500.0,0.00019178,2]
[350012289,1737565832411,-500.0,0.00019178,2]
[350012291,1737565832420,-500.0,0.00019178,2]
[350012293,1737565832429,-500.0,0.00019178,2]
[350012295,1737565832438,-529.67936903,0.00019178,2]
[350012297,1737565832447,-500.0,0.00019178,2]
[350012299,1737565832456,-500.0,0.00019178,2]
[350012301,1737565832465,-500.0,0.00019178,2]
[350012303,1737565832474,-216.9,0.00019178,2]
[350012305,1737565832483,-649.07,0.00019178,2]
[350012307,1737565832492,-500.0,0.00019178,2]
[350012309,1737565832501,-500.0,0.00019178,2]
[350012311,1737565832511,-500.0,0.00019178,2]
[350012313,1737565832520,-500.0,0.00019178,2]
[350012315,1737565832528,-646.03,0.00019178,2]
[350012317,1737565832538,-500.0,0.00019178,2]
[350012319,1737565832547,-500.0,0.00019178,2]
[350012321,1737565832556,-215.0701852,0.00019178,2]
[350012323,1737565832568,-284.9298148,0.00019178,2]
[350012325,1737565832577,-500.0,0.00019178,2]
[350012327,1737565832586,-501.78,0.00019178,2]
[350012329,1737565832595,-401.0901852,0.00019178,2]
[350012331,1737565832608,-213.1398148,0.00019178,2]
[350012333,1737565832618,-136.4230915,0.00019178,2]
[350012337,1737565832645,-363.5769085,0.00019178,2]
[350012339,1737565832653,-52.7830915,0.00019178,2]
[350012371,1737565837546,-575.93649978,0.00017928,2]
[350012372,1737565837652,-424.06350022,0.00017928,2]
[350012373,1737565837661,-447.2169085,0.00019178,2]
[350012374,1737565837670,-253.07,0.00019178,2]
[350012375,1737565837679,-500.0,0.00019178,2]
[350012376,1737565837689,-500.0,0.00019178,2]
[350012377,1737565837697,-500.0,0.00019178,2]
[350012378,1737565837706,-500.0,0.00019178,2]
[350012379,1737565837715,-500.0,0.00019178,2]
[350012380,1737565837724,-461.65260321,0.00019178,2]
[350012381,1737565837733,-500.0,0.00019178,2]
[350012382,1737565837743,-500.0,0.00019178,2]
[350012383,1737565837753,-500.0,0.00019178,2]
[350012384,1737565837762,-500.0,0.00019178,2]
[350012385,1737565837771,-500.0,0.00019178,2]
[350012386,1737565837781,-500.0,0.00019178,2]
[350012387,1737565837791,-500.0,0.00019178,2]
[350012388,1737565837800,-500.0,0.00019178,2]
[350012389,1737565837809,-563.17,0.00019178,2]
[350012390,1737565837819,-500.0,0.00019178,2]
[350012391,1737565837828,-500.0,0.00019178,2]
[350012392,1737565837837,-970.84,0.00019178,2]
[350012393,1737565837846,-500.0,0.00019178,2]
[350012394,1737565837856,-833.14,0.00019178,2]
[350012396,1737565837865,-701.87,0.00019178,2]
[350012398,1737565837877,-500.0,0.00019178,2]
[350012399,1737565837889,-500.0,0.00019178,2]
[350012402,1737565837902,-633.32,0.00019178,2]
[350012403,1737565837911,-500.0,0.00019178,2]
[350012405,1737565837920,-500.0,0.00019178,2]
[350012407,1737565837930,-598.7,0.00019178,2]
[350012408,1737565837939,-500.0,0.00019178,2]
[350012409,1737565837949,-14976.07278932,0.00019178,2]
[350012410,1737565837960,-90115.15399589,0.00019178,2]
[350012411,1737565837969,-179.76,0.00019295,2]
[350012412,1737565837979,-166.66,0.00019349,2]
[350012413,1737565837988,-500.0,0.00019434,2]
[350012414,1737565837998,-259.08,0.00019441,2]
[350012415,1737565838007,-500.0,0.0001945,2]
[350012416,1737565838016,-500.0,0.0001945,2]
[350012417,1737565838025,-2046.91,0.0001945,2]
[350012419,1737565838035,-1463.22,0.0001945,2]
[350012421,1737565838044,-618.01,0.0001945,2]
[350012423,1737565838053,-656.98,0.0001945,2]
[350012424,1737565838062,-500.0,0.0001945,2]
[350012427,1737565838072,-500.0,0.0001945,2]
[350012428,1737565838081,-657.244566,0.0001945,2]
[350012430,1737565838090,-158.074461,0.0001945,2]
[350012432,1737565838099,-500.0,0.0001945,2]
[350012434,1737565838108,-500.0,0.0001945,2]
[350012436,1737565838117,-907.71,0.0001945,2]
[350012438,1737565838126,-500.0,0.0001945,2]
[350012440,1737565838135,-460.310681,0.0001945,2]
[350012442,1737565838145,-1063.42,0.0001945,2]
[350012444,1737565838154,-941.71,0.0001945,2]
[350012446,1737565838163,-500.0,0.0001945,2]
[350012448,1737565838172,-500.0,0.0001945,2]
[350012450,1737565838182,-965.73,0.0001945,2]
[350012452,1737565838191,-1797.28,0.0001945,2]
[350012454,1737565838207,-643.03,0.0001945,2]
[350012456,1737565838216,-974.46,0.0001945,2]
[350012458,1737565838226,-724.33,0.0001945,2]
[350012460,1737565838235,-694.48,0.0001945,2]
[350012462,1737565838245,-673.61,0.0001945,2]
[350012464,1737565838256,-776.58,0.0001945,2]
[350012466,1737565838265,-672.49,0.0001945,2]
[350012468,1737565838274,-500.0,0.0001945,2]
[350012470,1737565838283,-500.0,0.0001945,2]
[350012472,1737565838293,-501.16,0.0001945,2]
[350012474,1737565838302,-500.0,0.0001945,2]
[350012476,1737565838311,-500.0,0.0001945,2]
[350012478,1737565838321,-625.11,0.0001945,2]
[350012480,1737565838330,-1105.81,0.0001945,2]
[350012482,1737565838340,-1336.34,0.0001945,2]
[350012484,1737565838349,-726.5,0.0001945,2]
[350012486,1737565838358,-935.45,0.0001945,2]
[350012488,1737565838367,-966.49,0.0001945,2]
[350012490,1737565838376,-500.0,0.0001945,2]
[350012492,1737565838385,-158.074461,0.0001945,2]
[350012494,1737565838394,-159.18752,0.0001945,2]
[350012496,1737565838402,-1581.88,0.0001945,2]
[350012498,1737565838411,-788.97,0.0001945,2]
[350012500,1737565838420,-500.0,0.0001945,2]
[350012502,1737565838429,-500.0,0.0001945,2]
[350012504,1737565838438,-1523.35129291,0.0001945,2]
[350012507,1737565838459,-302.39870709,0.0001945,2]
[350012509,1737565838468,-636.92,0.0001945,2]
[350012511,1737565838477,-500.0,0.0001945,2]
[350012513,1737565838486,-500.0,0.0001945,2]
[350012515,1737565838495,-500.0,0.0001945,2]
[350012517,1737565838503,-681.56,0.0001945,2]
[350012519,1737565838513,-1012.12,0.0001945,2]
[350012521,1737565838521,-558.9346221,0.0001945,2]
[350012523,1737565838531,-666.62,0.0001945,2]
[350012525,1737565838540,-847.19,0.0001945,2]
[350012527,1737565838549,-699.41,0.0001945,2]
[350012529,1737565838559,-626.69,0.0001945,2]
[350012531,1737565838568,-2254.05,0.0001945,2]
[350012533,1737565838577,-153.508936,0.0001945,2]
[350012534,1737565838586,-500.0,0.0001945,2]
[350012536,1737565838595,-1106.94,0.0001945,2]
[350012538,1737565838604,-237.23,0.0001945,2]
[350012540,1737565838613,-1650.73,0.0001945,2]
[350012542,1737565838623,-500.0,0.0001945,2]
[350012544,1737565838631,-1074.08,0.0001945,2]
[350012546,1737565838641,-743.43,0.0001945,2]
[350012548,1737565838650,-500.0,0.0001945,2]
[350012550,1737565838659,-500.0,0.0001945,2]
[350012552,1737565838668,-500.0,0.0001945,2]
[350012554,1737565838678,-500.0,0.00019451,2]
[350012556,1737565838687,-500.0,0.00019451,2]
[350012558,1737565838696,-500.0,0.00019451,2]
[350012560,1737565838705,-500.0,0.00019451,2]
[350012562,1737565838714,-500.0,0.00019451,2]
[350012564,1737565838723,-500.0,0.00019451,2]
[350012566,1737565838733,-500.0,0.00019451,2]
[350012568,1737565838742,-500.0,0.00019451,2]
[350012570,1737565838751,-500.0,0.00019451,2]
[350012572,1737565838760,-500.0,0.00019451,2]
[350012574,1737565838770,-500.0,0.00019451,2]
[350012576,1737565838779,-500.0,0.00019451,2]
[350012578,1737565838789,-500.0,0.00019451,2]
[350012580,1737565838798,-540.75691237,0.00019451,2]
[350012582,1737565838807,-500.0,0.00019451,2]
[350012584,1737565838817,-509.66,0.00019451,2]
[350012586,1737565838826,-500.0,0.00019451,2]
[350012589,1737565838837,-545.74,0.00019451,2]
[350012591,1737565838851,-500.0,0.00019451,2]
[350012593,1737565838862,-500.0,0.00019451,2]
[350012595,1737565838871,-500.0,0.00019451,2]
[350012597,1737565838880,-500.0,0.00019451,2]
[350012599,1737565838889,-500.0,0.00019451,2]
[350012601,1737565838899,-599.74108847,0.00019451,2]
[350012603,1737565838909,-500.0,0.00019451,2]
[350012605,1737565838918,-500.0,0.00019451,2]
[350012607,1737565838927,-500.0,0.00019451,2]
[350012609,1737565838937,-500.0,0.00019451,2]
[350012611,1737565838946,-500.0,0.00019451,2]
[350012613,1737565838955,-500.0,0.00019451,2]
[350012615,1737565838965,-429.30298277,0.00019451,2]
[350012617,1737565838974,-191.48754753,0.00019451,2]
[350012619,1737565838983,-525.43,0.00019451,2]
[350012621,1737565838992,-500.0,0.00019451,2]
[350012623,1737565839002,-505.79,0.00019451,2]
[350012625,1737565839012,-500.0,0.00019451,2]
[350012627,1737565839021,-500.0,0.00019451,2]
[350012629,1737565839030,-500.0,0.00019451,2]
[350012631,1737565839040,-500.0,0.00019451,2]
[350012633,1737565839049,-500.0,0.00019451,2]
[350012635,1737565839059,-500.0,0.00019451,2]
[350012637,1737565839068,-500.0,0.00019451,2]
[350012639,1737565839077,-500.0,0.00019451,2]
[350012641,1737565839086,-500.0,0.00019451,2]
[350012643,1737565839096,-500.0,0.00019451,2]
[350012645,1737565839104,-500.0,0.00019451,2]
[350012647,1737565839114,-500.0,0.00019451,2]
[350012649,1737565839124,-500.0,0.00019451,2]
[350012651,1737565839133,-500.0,0.00019451,2]
[350012653,1737565839142,-500.0,0.00019451,2]
[350012655,1737565839151,-623.51,0.00019451,2]
[350012657,1737565839161,-500.0,0.00019451,2]
[350012659,1737565839171,-609.23495272,0.00019451,2]
[350012661,1737565839180,-546.02,0.00019451,2]
[350012663,1737565839189,-500.0,0.00019451,2]
[350012665,1737565839198,-504.84,0.00019451,2]
[350012666,1737565839207,-223.35902839,0.00019451,2]
[350012668,1737565839216,-500.0,0.00019451,2]
[350012670,1737565839225,-505.96040558,0.00019451,2]
[350012672,1737565839235,-500.0,0.00019451,2]